[Event "Titled Tuesday Blitz July 27 2021"]
[White "Grinblat, Dmitry"]
[Black "Dobrowolski, Piotr"]
[WhiteFideId "4163257"]
[BlackFideId "1106236"]
[WhiteElo "2463"]
[BlackElo "2304"]
[Result "1/2-1/2"]
[Round "11"]
[TimeControl "180+1"]
[Date "2021.07.27"]
[WhiteClock "0:00:31"]
[BlackClock "0:00:41"]

1. d4 {[%clk 0:03:00]}  e6 {[%clk 0:02:59]} 2. Nf3 {[%clk 0:03:00]}  c5 {[%clk 0:02:59]} 3. c4 {[%clk 0:03:00]}  cxd4 {[%clk 0:02:59]} 4. Nxd4 {[%clk 0:03:01]}  Nf6 {[%clk 0:02:58]} 5. Nc3 {[%clk 0:03:01]}  Nc6 {[%clk 0:02:59]} 6. Nc2 {[%clk 0:02:58]}  Qc7 {[%clk 0:02:53]} 7. g3 {[%clk 0:02:53]}  Ne5 {[%clk 0:02:53]} 8. b3 {[%clk 0:02:49]}  Qc6 {[%clk 0:02:50]} 9. f3 {[%clk 0:02:44]}  Bc5 {[%clk 0:02:42]} 10. Be3 {[%clk 0:02:36]}  O-O {[%clk 0:02:31]} 11. Bg2 {[%clk 0:02:29]}  d5 {[%clk 0:02:14]} 12. cxd5 {[%clk 0:02:23]}  exd5 {[%clk 0:02:12]} 13. Bxc5 {[%clk 0:02:19]}  Qxc5 {[%clk 0:02:12]} 14. Qd4 {[%clk 0:02:20]}  Qxd4 {[%clk 0:02:10]} 15. Nxd4 {[%clk 0:02:20]}  Nc6 {[%clk 0:02:11]} 16. Rd1 {[%clk 0:02:16]}  Re8 {[%clk 0:02:10]} 17. Kf2 {[%clk 0:02:15]}  Be6 {[%clk 0:01:46]} 18. Ncb5 {[%clk 0:02:11]}  Nxd4 {[%clk 0:01:37]} 19. Nxd4 {[%clk 0:02:07]}  Rec8 {[%clk 0:01:37]} 20. Rc1 {[%clk 0:02:06]}  Kf8 {[%clk 0:01:35]} 21. Rhd1 {[%clk 0:01:53]}  a6 {[%clk 0:01:31]} 22. e3 {[%clk 0:01:51]}  Ke7 {[%clk 0:01:30]} 23. g4 {[%clk 0:01:48]}  Rxc1 {[%clk 0:01:21]} 24. Rxc1 {[%clk 0:01:47]}  Rc8 {[%clk 0:01:19]} 25. Rxc8 {[%clk 0:01:40]}  Bxc8 {[%clk 0:01:20]} 26. Bf1 {[%clk 0:01:34]}  Kd6 {[%clk 0:01:19]} 27. Bd3 {[%clk 0:01:34]}  h6 {[%clk 0:01:17]} 28. h4 {[%clk 0:01:33]}  Be6 {[%clk 0:01:16]} 29. Nf5+ {[%clk 0:01:27]}  Bxf5 {[%clk 0:01:16]} 30. Bxf5 {[%clk 0:01:28]}  g6 {[%clk 0:01:14]} 31. Bd3 {[%clk 0:01:24]}  Nd7 {[%clk 0:01:12]} 32. Ke2 {[%clk 0:01:16]}  Kc5 {[%clk 0:01:11]} 33. a3 {[%clk 0:01:15]}  a5 {[%clk 0:01:08]} 34. f4 {[%clk 0:01:11]}  Nf6 {[%clk 0:01:03]} 35. Kf3 {[%clk 0:01:02]}  Ne8 {[%clk 0:00:59]} 36. f5 {[%clk 0:00:56]}  gxf5 {[%clk 0:00:58]} 37. Bxf5 {[%clk 0:00:54]}  f6 {[%clk 0:00:56]} 38. Kf4 {[%clk 0:00:53]}  Nd6 {[%clk 0:00:56]} 39. Bd3 {[%clk 0:00:52]}  b6 {[%clk 0:00:47]} 40. Be2 {[%clk 0:00:40]}  b5 {[%clk 0:00:42]} 41. Bd3 {[%clk 0:00:37]}  b4 {[%clk 0:00:42]} 42. a4 {[%clk 0:00:36]}  Kc6 {[%clk 0:00:42]} 43. Bc2 {[%clk 0:00:30]}  Kc5 {[%clk 0:00:41]} 44. Bd3 {[%clk 0:00:30]}  Kc6 {[%clk 0:00:41]} 45. Bc2 {[%clk 0:00:30]}  Kc5 {[%clk 0:00:41]} 46. Bd3 {[%clk 0:00:31]} 1/2-1/2


[Site "https://www.chess.com"]

[Event "Titled Tuesday Blitz July 27 2021"]
[White "Hansen, Eric"]
[Black "Dvirnyy, Danyyil"]
[WhiteFideId "2606771"]
[BlackFideId "817570"]
[WhiteElo "2568"]
[BlackElo "2531"]
[Result "0-1"]
[Round "11"]
[TimeControl "180+1"]
[Date "2021.07.27"]
[WhiteClock "0:00:17"]
[BlackClock "0:00:25"]

1. Nf3 {[%clk 0:03:00]}  d5 {[%clk 0:02:58]} 2. g3 {[%clk 0:03:01]}  Bg4 {[%clk 0:02:51]} 3. Bg2 {[%clk 0:03:01]}  c6 {[%clk 0:02:51]} 4. h3 {[%clk 0:03:01]}  Bh5 {[%clk 0:02:51]} 5. d3 {[%clk 0:03:01]}  Nd7 {[%clk 0:02:49]} 6. Nbd2 {[%clk 0:03:02]}  e6 {[%clk 0:02:48]} 7. b3 {[%clk 0:03:02]}  Bd6 {[%clk 0:02:46]} 8. Bb2 {[%clk 0:03:02]}  Ngf6 {[%clk 0:02:45]} 9. c4 {[%clk 0:03:02]}  Qe7 {[%clk 0:02:45]} 10. a3 {[%clk 0:03:02]}  O-O {[%clk 0:02:36]} 11. O-O {[%clk 0:03:01]}  a5 {[%clk 0:02:35]} 12. Qc2 {[%clk 0:03:01]}  h6 {[%clk 0:02:18]} 13. Rfe1 {[%clk 0:02:55]}  Bg6 {[%clk 0:02:18]} 14. cxd5 {[%clk 0:02:23]}  exd5 {[%clk 0:02:07]} 15. e4 {[%clk 0:02:21]}  dxe4 {[%clk 0:01:58]} 16. dxe4 {[%clk 0:02:21]}  Rfe8 {[%clk 0:01:57]} 17. Nh4 {[%clk 0:02:18]}  Bh7 {[%clk 0:01:53]} 18. Nc4 {[%clk 0:02:13]}  Bc7 {[%clk 0:01:42]} 19. Rad1 {[%clk 0:02:09]}  Nc5 {[%clk 0:01:35]} 20. Nf5 {[%clk 0:01:47]}  Bxf5 {[%clk 0:01:35]} 21. exf5 {[%clk 0:01:48]}  Qxe1+ {[%clk 0:01:35]} 22. Rxe1 {[%clk 0:01:49]}  Rxe1+ {[%clk 0:01:36]} 23. Kh2 {[%clk 0:01:49]}  Rae8 {[%clk 0:01:12]} 24. Ne3 {[%clk 0:01:49]}  Nce4 {[%clk 0:01:05]} 25. Bxe4 {[%clk 0:01:20]}  Nxe4 {[%clk 0:01:03]} 26. Kg2 {[%clk 0:01:16]}  Bxg3 {[%clk 0:00:35]} 27. Bc3 {[%clk 0:01:02]}  Nxc3 {[%clk 0:00:28]} 28. Qxc3 {[%clk 0:01:02]}  Bxf2 {[%clk 0:00:25]} 29. Ng4 {[%clk 0:00:54]}  Bh4 {[%clk 0:00:25]} 30. f6 {[%clk 0:00:26]}  h5 {[%clk 0:00:25]} 31. Nh2 {[%clk 0:00:17]}  R8e2+ {[%clk 0:00:25]} 0-1


[Site "https://www.chess.com"]

[Event "Titled Tuesday Blitz July 27 2021"]
[White "Iskusnyh, Sergei"]
[Black "Marchena Hurtado, Javier"]
[WhiteFideId "4120027"]
[BlackFideId "2271583"]
[WhiteElo "2492"]
[BlackElo "2106"]
[Result "1-0"]
[Round "11"]
[TimeControl "180+1"]
[Date "2021.07.27"]
[WhiteClock "0:00:03"]
[BlackClock "0:00:01"]

1. d4 {[%clk 0:03:00]}  Nf6 {[%clk 0:02:58]} 2. c4 {[%clk 0:03:00]}  g6 {[%clk 0:02:57]} 3. g3 {[%clk 0:03:01]}  Bg7 {[%clk 0:02:57]} 4. Bg2 {[%clk 0:03:01]}  O-O {[%clk 0:02:58]} 5. Nc3 {[%clk 0:03:02]}  d6 {[%clk 0:02:58]} 6. Nf3 {[%clk 0:03:03]}  Nbd7 {[%clk 0:02:59]} 7. O-O {[%clk 0:03:03]}  e5 {[%clk 0:02:59]} 8. e4 {[%clk 0:03:04]}  exd4 {[%clk 0:02:59]} 9. Nxd4 {[%clk 0:03:04]}  Re8 {[%clk 0:02:59]} 10. h3 {[%clk 0:03:02]}  Nc5 {[%clk 0:03:00]} 11. Qc2 {[%clk 0:03:01]}  Nfxe4 {[%clk 0:02:58]} 12. Nxe4 {[%clk 0:02:52]}  Nxe4 {[%clk 0:02:48]} 13. Nb5 {[%clk 0:02:48]}  Nc5 {[%clk 0:02:35]} 14. Be3 {[%clk 0:02:47]}  Bf5 {[%clk 0:02:27]} 15. Qc1 {[%clk 0:02:25]}  Nd3 {[%clk 0:02:11]} 16. Qd2 {[%clk 0:02:18]}  Nxb2 {[%clk 0:02:05]} 17. Rac1 {[%clk 0:02:00]}  Be6 {[%clk 0:01:44]} 18. Bd5 {[%clk 0:01:21]}  c6 {[%clk 0:01:24]} 19. Bxe6 {[%clk 0:01:15]}  cxb5 {[%clk 0:01:23]} 20. Bd5 {[%clk 0:01:07]}  Nxc4 {[%clk 0:01:23]} 21. Qd3 {[%clk 0:01:04]}  Nxe3 {[%clk 0:01:12]} 22. fxe3 {[%clk 0:01:04]}  Rf8 {[%clk 0:00:56]} 23. Qxb5 {[%clk 0:01:00]}  Be5 {[%clk 0:00:46]} 24. Qxb7 {[%clk 0:00:51]}  Rb8 {[%clk 0:00:39]} 25. Qxa7 {[%clk 0:00:43]}  Qg5 {[%clk 0:00:36]} 26. g4 {[%clk 0:00:34]}  Qh4 {[%clk 0:00:27]} 27. Rf3 {[%clk 0:00:33]}  Kh8 {[%clk 0:00:22]} 28. Rcf1 {[%clk 0:00:23]}  Rb2 {[%clk 0:00:20]} 29. R1f2 {[%clk 0:00:23]}  Rxf2 {[%clk 0:00:17]} 30. Rxf2 {[%clk 0:00:22]}  Qg3+ {[%clk 0:00:14]} 31. Bg2 {[%clk 0:00:21]}  Rc8 {[%clk 0:00:12]} 32. Qxf7 {[%clk 0:00:12]}  Rc1+ {[%clk 0:00:11]} 33. Rf1 {[%clk 0:00:12]}  Qxe3+ {[%clk 0:00:11]} 34. Kh1 {[%clk 0:00:11]}  Rxf1+ {[%clk 0:00:09]} 35. Qxf1 {[%clk 0:00:11]}  Kg7 {[%clk 0:00:06]} 36. Qf3 {[%clk 0:00:11]}  Qe1+ {[%clk 0:00:06]} 37. Bf1 {[%clk 0:00:12]}  Qd2 {[%clk 0:00:05]} 38. Qg2 {[%clk 0:00:10]}  Qa5 {[%clk 0:00:03]} 39. Qf2 {[%clk 0:00:09]}  Qa3 {[%clk 0:00:02]} 40. Bg2 {[%clk 0:00:08]}  Qc1+ {[%clk 0:00:02]} 41. Qf1 {[%clk 0:00:07]}  Qc3 {[%clk 0:00:02]} 42. Bd5 {[%clk 0:00:07]}  Qg3 {[%clk 0:00:02]} 43. Qg2 {[%clk 0:00:04]}  Qe1+ {[%clk 0:00:02]} 44. Qg1 {[%clk 0:00:04]}  Qe2 {[%clk 0:00:01]} 45. Bg2 {[%clk 0:00:04]}  Qd3 {[%clk 0:00:01]} 46. Qa7+ {[%clk 0:00:03]} 1-0


[Site "https://www.chess.com"]

[Event "Titled Tuesday Blitz July 27 2021"]
[White "Karwowski, Kacper"]
[Black "Ogloblin, Nikolay"]
[WhiteFideId "1126032"]
[BlackFideId "4139658"]
[WhiteElo "2162"]
[BlackElo "2244"]
[Result "0-1"]
[Round "11"]
[TimeControl "180+1"]
[Date "2021.07.27"]
[WhiteClock "0:00:02"]
[BlackClock "0:00:45"]

1. h4 {[%clk 0:02:25]}  d5 {[%clk 0:02:58]} 2. Nf3 {[%clk 0:02:23]}  Bg4 {[%clk 0:02:55]} 3. e3 {[%clk 0:02:22]}  Nd7 {[%clk 0:02:53]} 4. b3 {[%clk 0:02:22]}  e5 {[%clk 0:02:53]} 5. Be2 {[%clk 0:02:22]}  Bd6 {[%clk 0:02:52]} 6. Bb2 {[%clk 0:02:22]}  Ngf6 {[%clk 0:02:51]} 7. Ng5 {[%clk 0:02:19]}  Bxe2 {[%clk 0:02:50]} 8. Qxe2 {[%clk 0:02:20]}  h6 {[%clk 0:02:50]} 9. Nh3 {[%clk 0:02:19]}  Qe7 {[%clk 0:02:50]} 10. Nc3 {[%clk 0:02:17]}  c6 {[%clk 0:02:51]} 11. g4 {[%clk 0:02:15]}  O-O-O {[%clk 0:02:46]} 12. a4 {[%clk 0:02:13]}  Kb8 {[%clk 0:02:45]} 13. Rg1 {[%clk 0:02:04]}  Nc5 {[%clk 0:02:45]} 14. f3 {[%clk 0:01:58]}  Nfd7 {[%clk 0:02:43]} 15. h5 {[%clk 0:01:56]}  Qh4+ {[%clk 0:02:42]} 16. Nf2 {[%clk 0:01:56]}  Rhe8 {[%clk 0:02:40]} 17. O-O-O {[%clk 0:01:56]}  Ne6 {[%clk 0:02:34]} 18. Kb1 {[%clk 0:01:48]}  Qe7 {[%clk 0:02:34]} 19. Ka2 {[%clk 0:01:48]}  f6 {[%clk 0:02:32]} 20. Nh1 {[%clk 0:01:44]}  d4 {[%clk 0:02:26]} 21. Ne4 {[%clk 0:01:35]}  Nec5 {[%clk 0:02:24]} 22. Nhg3 {[%clk 0:01:31]}  Nxe4 {[%clk 0:02:20]} 23. fxe4 {[%clk 0:01:31]}  dxe3 {[%clk 0:02:16]} 24. Nf5 {[%clk 0:01:31]}  Qf8 {[%clk 0:02:16]} 25. dxe3 {[%clk 0:01:25]}  Bc7 {[%clk 0:02:15]} 26. Qc4 {[%clk 0:01:12]}  Nb6 {[%clk 0:02:14]} 27. Qc3 {[%clk 0:01:10]}  Qf7 {[%clk 0:02:14]} 28. Kb1 {[%clk 0:01:04]}  Nc8 {[%clk 0:02:12]} 29. Ba3 {[%clk 0:01:02]}  Rxd1+ {[%clk 0:02:10]} 30. Rxd1 {[%clk 0:01:01]}  Rd8 {[%clk 0:02:10]} 31. Rxd8 {[%clk 0:01:00]}  Bxd8 {[%clk 0:02:11]} 32. Qc4 {[%clk 0:01:00]}  Qxc4 {[%clk 0:02:03]} 33. bxc4 {[%clk 0:01:00]}  Nb6 {[%clk 0:02:03]} 34. c5 {[%clk 0:00:45]}  Nxa4 {[%clk 0:02:02]} 35. Bb4 {[%clk 0:00:41]}  a5 {[%clk 0:02:01]} 36. Be1 {[%clk 0:00:34]}  Nxc5 {[%clk 0:02:00]} 37. Nxg7 {[%clk 0:00:31]}  Nxe4 {[%clk 0:01:59]} 38. Nf5 {[%clk 0:00:31]}  Bb6 {[%clk 0:01:47]} 39. Nxh6 {[%clk 0:00:28]}  Bxe3 {[%clk 0:01:43]} 40. Nf5 {[%clk 0:00:28]}  Bb6 {[%clk 0:01:33]} 41. Bh4 {[%clk 0:00:21]}  Bd8 {[%clk 0:01:20]} 42. h6 {[%clk 0:00:14]}  Ng5 {[%clk 0:01:16]} 43. Bxg5 {[%clk 0:00:12]}  fxg5 {[%clk 0:01:17]} 44. h7 {[%clk 0:00:11]}  Bf6 {[%clk 0:01:17]} 45. Nd6 {[%clk 0:00:12]}  Kc7 {[%clk 0:01:15]} 46. Nf7 {[%clk 0:00:12]}  e4 {[%clk 0:01:14]} 47. h8=Q {[%clk 0:00:11]}  Bxh8 {[%clk 0:01:13]} 48. Nxh8 {[%clk 0:00:12]}  e3 {[%clk 0:01:11]} 49. Kc1 {[%clk 0:00:12]}  a4 {[%clk 0:01:11]} 50. Nf7 {[%clk 0:00:06]}  e2 {[%clk 0:01:11]} 51. Kd2 {[%clk 0:00:06]}  a3 {[%clk 0:01:12]} 52. Nxg5 {[%clk 0:00:06]}  a2 {[%clk 0:01:12]} 53. Kxe2 {[%clk 0:00:06]}  a1=Q {[%clk 0:01:12]} 54. Ne4 {[%clk 0:00:07]}  Qe5 {[%clk 0:01:11]} 55. Kd3 {[%clk 0:00:07]}  Qf4 {[%clk 0:01:09]} 56. g5 {[%clk 0:00:07]}  Qf5 {[%clk 0:01:08]} 57. Kd4 {[%clk 0:00:06]}  Kd7 {[%clk 0:01:02]} 58. c4 {[%clk 0:00:06]}  b6 {[%clk 0:01:01]} 59. Nf6+ {[%clk 0:00:04]}  Ke6 {[%clk 0:01:01]} 60. Ne4 {[%clk 0:00:05]}  Qe5+ {[%clk 0:01:00]} 61. Kd3 {[%clk 0:00:05]}  Kf5 {[%clk 0:01:00]} 62. Nc3 {[%clk 0:00:04]}  Qd6+ {[%clk 0:00:58]} 63. Kc2 {[%clk 0:00:04]}  Qh2+ {[%clk 0:00:57]} 64. Kb3 {[%clk 0:00:04]}  Kxg5 {[%clk 0:00:58]} 65. Na4 {[%clk 0:00:04]}  Qg3+ {[%clk 0:00:56]} 66. Kb4 {[%clk 0:00:04]}  Qe3 {[%clk 0:00:56]} 67. Nc3 {[%clk 0:00:03]}  Qc5+ {[%clk 0:00:56]} 68. Kb3 {[%clk 0:00:04]}  Kf5 {[%clk 0:00:56]} 69. Na4 {[%clk 0:00:03]}  Qe3+ {[%clk 0:00:56]} 70. Kb4 {[%clk 0:00:03]}  Ke6 {[%clk 0:00:56]} 71. Nc3 {[%clk 0:00:03]}  Qc5+ {[%clk 0:00:55]} 72. Kb3 {[%clk 0:00:04]}  Kd7 {[%clk 0:00:55]} 73. Na4 {[%clk 0:00:03]}  Qe3+ {[%clk 0:00:54]} 74. Nc3 {[%clk 0:00:03]}  Kc7 {[%clk 0:00:54]} 75. Kb4 {[%clk 0:00:03]}  Qc5+ {[%clk 0:00:54]} 76. Kb3 {[%clk 0:00:04]}  b5 {[%clk 0:00:53]} 77. cxb5 {[%clk 0:00:04]}  cxb5 {[%clk 0:00:53]} 78. Na2 {[%clk 0:00:04]}  Qc4+ {[%clk 0:00:53]} 79. Kb2 {[%clk 0:00:04]}  Kb6 {[%clk 0:00:53]} 80. Nc3 {[%clk 0:00:04]}  Qd4 {[%clk 0:00:53]} 81. Kb3 {[%clk 0:00:04]}  Qc4+ {[%clk 0:00:53]} 82. Kb2 {[%clk 0:00:04]}  b4 {[%clk 0:00:53]} 83. Na2 {[%clk 0:00:04]}  Kb5 {[%clk 0:00:52]} 84. Nc1 {[%clk 0:00:04]}  Qd4+ {[%clk 0:00:51]} 85. Kb3 {[%clk 0:00:03]}  Qc3+ {[%clk 0:00:51]} 86. Ka2 {[%clk 0:00:03]}  Qc2+ {[%clk 0:00:47]} 87. Ka1 {[%clk 0:00:02]}  Qxc1+ {[%clk 0:00:47]} 88. Ka2 {[%clk 0:00:02]}  Qc2+ {[%clk 0:00:47]} 89. Ka1 {[%clk 0:00:02]}  Qa4+ {[%clk 0:00:48]} 90. Kb2 {[%clk 0:00:03]}  Kc4 {[%clk 0:00:46]} 91. Kc1 {[%clk 0:00:03]}  Qa2 {[%clk 0:00:45]} 92. Kd1 {[%clk 0:00:01]}  Kd3 {[%clk 0:00:45]} 93. Ke1 {[%clk 0:00:02]}  Qe2# {[%clk 0:00:45]} 0-1


[Site "https://www.chess.com"]

[Event "Titled Tuesday Blitz July 27 2021"]
[White "Kim, Sergey"]
[Black "Vivas Zamora, Fabian Ernesto"]
[WhiteFideId "13700570"]
[BlackFideId "3902480"]
[WhiteElo "2534"]
[BlackElo "1966"]
[Result "1-0"]
[Round "11"]
[TimeControl "180+1"]
[Date "2021.07.27"]
[WhiteClock "0:00:44"]
[BlackClock "0:00:01"]

1. d4 {[%clk 0:03:00]}  Nf6 {[%clk 0:02:12]} 2. c4 {[%clk 0:02:59]}  g6 {[%clk 0:02:12]} 3. Nc3 {[%clk 0:02:59]}  d5 {[%clk 0:02:13]} 4. cxd5 {[%clk 0:02:59]}  Nxd5 {[%clk 0:02:14]} 5. e4 {[%clk 0:03:00]}  Nxc3 {[%clk 0:02:14]} 6. bxc3 {[%clk 0:03:00]}  Bg7 {[%clk 0:02:15]} 7. Bc4 {[%clk 0:03:00]}  c5 {[%clk 0:02:15]} 8. Ne2 {[%clk 0:03:00]}  Nc6 {[%clk 0:02:13]} 9. Be3 {[%clk 0:02:59]}  O-O {[%clk 0:02:10]} 10. O-O {[%clk 0:02:59]}  b6 {[%clk 0:02:08]} 11. Qd2 {[%clk 0:02:59]}  Bb7 {[%clk 0:01:50]} 12. Rad1 {[%clk 0:02:57]}  Na5 {[%clk 0:01:42]} 13. Bd3 {[%clk 0:02:53]}  e6 {[%clk 0:01:37]} 14. Bh6 {[%clk 0:02:52]}  Qe7 {[%clk 0:01:18]} 15. Bxg7 {[%clk 0:02:47]}  Kxg7 {[%clk 0:01:18]} 16. Qe3 {[%clk 0:02:36]}  Rad8 {[%clk 0:00:48]} 17. Qg3 {[%clk 0:02:31]}  cxd4 {[%clk 0:00:12]} 18. cxd4 {[%clk 0:02:29]}  Nc6 {[%clk 0:00:12]} 19. Bb1 {[%clk 0:02:27]}  e5 {[%clk 0:00:11]} 20. d5 {[%clk 0:02:20]}  Na5 {[%clk 0:00:11]} 21. f4 {[%clk 0:02:12]}  Nc4 {[%clk 0:00:11]} 22. f5 {[%clk 0:02:09]}  f6 {[%clk 0:00:09]} 23. h4 {[%clk 0:01:56]}  Qc5+ {[%clk 0:00:08]} 24. Rf2 {[%clk 0:01:53]}  Qe3 {[%clk 0:00:07]} 25. Qxe3 {[%clk 0:01:43]}  Nxe3 {[%clk 0:00:07]} 26. Rd3 {[%clk 0:01:43]}  Ng4 {[%clk 0:00:08]} 27. Rf1 {[%clk 0:01:40]}  Ba6 {[%clk 0:00:08]} 28. Rd2 {[%clk 0:01:39]}  Rc8 {[%clk 0:00:08]} 29. Bd3 {[%clk 0:01:36]}  Bxd3 {[%clk 0:00:07]} 30. Rxd3 {[%clk 0:01:36]}  Rc2 {[%clk 0:00:08]} 31. Nc3 {[%clk 0:01:33]}  Rc8 {[%clk 0:00:08]} 32. Nb5 {[%clk 0:01:28]}  Rxa2 {[%clk 0:00:08]} 33. d6 {[%clk 0:01:27]}  Rcc2 {[%clk 0:00:07]} 34. Rg3 {[%clk 0:01:26]}  Ne3 {[%clk 0:00:03]} 35. d7 {[%clk 0:01:14]}  Nxf1 {[%clk 0:00:03]} 36. d8=Q {[%clk 0:01:10]}  Nxg3 {[%clk 0:00:02]} 37. Qe7+ {[%clk 0:01:02]}  Kh6 {[%clk 0:00:02]} 38. Kh2 {[%clk 0:00:52]}  Rxg2+ {[%clk 0:00:02]} 39. Kh3 {[%clk 0:00:52]}  Rh2+ {[%clk 0:00:02]} 40. Kxg3 {[%clk 0:00:52]}  Rag2+ {[%clk 0:00:01]} 41. Kf3 {[%clk 0:00:52]}  Rf2+ {[%clk 0:00:02]} 42. Ke3 {[%clk 0:00:53]}  Re2+ {[%clk 0:00:01]} 43. Kd3 {[%clk 0:00:53]}  Rd2+ {[%clk 0:00:01]} 44. Kc4 {[%clk 0:00:52]}  Rc2+ {[%clk 0:00:01]} 45. Kd5 {[%clk 0:00:52]}  Rc5+ {[%clk 0:00:01]} 46. Ke6 {[%clk 0:00:52]}  Rxb5 {[%clk 0:00:02]} 47. Qxf6 {[%clk 0:00:51]}  Rg2 {[%clk 0:00:01]} 48. Qf8+ {[%clk 0:00:46]}  Kh5 {[%clk 0:00:01]} 49. Qe8 {[%clk 0:00:46]}  h6 {[%clk 0:00:01]} 50. Qxb5 {[%clk 0:00:45]}  gxf5 {[%clk 0:00:01]} 51. Qxe5 {[%clk 0:00:44]} 1-0


[Site "https://www.chess.com"]

[Event "Titled Tuesday Blitz July 27 2021"]
[White "Koepke, Christian"]
[Black "Jodorcovsky Werjivker, Paulo"]
[WhiteFideId "4655737"]
[BlackFideId "3700305"]
[WhiteElo "2216"]
[BlackElo "2142"]
[Result "1/2-1/2"]
[Round "11"]
[TimeControl "180+1"]
[Date "2021.07.27"]
[WhiteClock "0:00:11"]
[BlackClock "0:01:07"]

1. e4 {[%clk 0:03:00]}  e5 {[%clk 0:02:59]} 2. Nc3 {[%clk 0:02:59]}  Bc5 {[%clk 0:02:58]} 3. f4 {[%clk 0:02:53]}  d6 {[%clk 0:02:57]} 4. Nf3 {[%clk 0:02:52]}  Nc6 {[%clk 0:02:55]} 5. Bb5 {[%clk 0:02:51]}  Nf6 {[%clk 0:02:39]} 6. fxe5 {[%clk 0:02:11]}  dxe5 {[%clk 0:02:29]} 7. Bxc6+ {[%clk 0:01:57]}  bxc6 {[%clk 0:02:28]} 8. d3 {[%clk 0:01:58]}  Bg4 {[%clk 0:02:28]} 9. Na4 {[%clk 0:01:54]}  Bb6 {[%clk 0:02:05]} 10. h3 {[%clk 0:01:49]}  Bxf3 {[%clk 0:02:02]} 11. Qxf3 {[%clk 0:01:50]}  Nd7 {[%clk 0:01:57]} 12. Bd2 {[%clk 0:01:31]}  O-O {[%clk 0:01:55]} 13. O-O-O {[%clk 0:01:29]}  Nc5 {[%clk 0:01:50]} 14. Nxc5 {[%clk 0:01:27]}  Bxc5 {[%clk 0:01:51]} 15. Bc3 {[%clk 0:01:24]}  Bd4 {[%clk 0:01:50]} 16. Bxd4 {[%clk 0:01:25]}  Qxd4 {[%clk 0:01:51]} 17. c3 {[%clk 0:01:20]}  Qa4 {[%clk 0:01:50]} 18. Kb1 {[%clk 0:01:14]}  Rab8 {[%clk 0:01:50]} 19. Rd2 {[%clk 0:01:12]}  Rb6 {[%clk 0:01:49]} 20. Rc1 {[%clk 0:01:08]}  Rfb8 {[%clk 0:01:47]} 21. Qd1 {[%clk 0:00:43]}  Qa3 {[%clk 0:01:44]} 22. Rcc2 {[%clk 0:00:35]}  Ra6 {[%clk 0:01:42]} 23. Kc1 {[%clk 0:00:32]}  Qxa2 {[%clk 0:01:41]} 24. Rf2 {[%clk 0:00:31]}  Qa1+ {[%clk 0:01:25]} 25. Kd2 {[%clk 0:00:31]}  Rxb2 {[%clk 0:01:25]} 26. Qxa1 {[%clk 0:00:28]}  Rxc2+ {[%clk 0:01:25]} 27. Kxc2 {[%clk 0:00:28]}  Rxa1 {[%clk 0:01:26]} 28. Kb3 {[%clk 0:00:22]}  Rd1 {[%clk 0:01:24]} 29. Kc4 {[%clk 0:00:22]}  f6 {[%clk 0:01:22]} 30. Ra2 {[%clk 0:00:20]}  Rg1 {[%clk 0:01:14]} 31. Kc5 {[%clk 0:00:15]}  Rd1 {[%clk 0:01:13]} 32. Kc4 {[%clk 0:00:15]}  Rg1 {[%clk 0:01:13]} 33. Kc5 {[%clk 0:00:15]}  Rc1 {[%clk 0:01:09]} 34. Kc4 {[%clk 0:00:11]}  Rg1 {[%clk 0:01:07]} 1/2-1/2


[Site "https://www.chess.com"]

[Event "Titled Tuesday Blitz July 27 2021"]
[White "Koridze, Lile"]
[Black "Dzhaparov, Medet"]
[WhiteFideId "13612514"]
[BlackFideId "13803689"]
[WhiteElo "1978"]
[BlackElo "1702"]
[Result "1-0"]
[Round "11"]
[TimeControl "180+1"]
[Date "2021.07.27"]
[WhiteClock "0:00:16"]
[BlackClock "0:00:02"]

1. d4 {[%clk 0:03:00]}  Nf6 {[%clk 0:02:58]} 2. c4 {[%clk 0:03:01]}  g6 {[%clk 0:02:58]} 3. Nc3 {[%clk 0:03:01]}  d5 {[%clk 0:02:58]} 4. Nf3 {[%clk 0:03:01]}  Bg7 {[%clk 0:02:58]} 5. Bg5 {[%clk 0:03:01]}  Ne4 {[%clk 0:02:56]} 6. cxd5 {[%clk 0:03:01]}  Nxg5 {[%clk 0:02:55]} 7. Nxg5 {[%clk 0:03:02]}  e6 {[%clk 0:02:55]} 8. Qd2 {[%clk 0:03:02]}  exd5 {[%clk 0:02:55]} 9. Qe3+ {[%clk 0:03:03]}  Kf8 {[%clk 0:02:56]} 10. Qf4 {[%clk 0:03:03]}  Bf6 {[%clk 0:02:56]} 11. h4 {[%clk 0:03:03]}  Kg7 {[%clk 0:02:46]} 12. e4 {[%clk 0:03:00]}  dxe4 {[%clk 0:02:47]} 13. Ncxe4 {[%clk 0:03:00]}  Qxd4 {[%clk 0:02:21]} 14. Bc4 {[%clk 0:02:20]}  Bf5 {[%clk 0:01:36]} 15. Qxc7 {[%clk 0:02:16]}  Nd7 {[%clk 0:00:26]} 16. Rd1 {[%clk 0:02:01]}  Qxb2 {[%clk 0:00:26]} 17. O-O {[%clk 0:00:55]}  Rac8 {[%clk 0:00:08]} 18. Rxd7 {[%clk 0:00:49]}  Rxc7 {[%clk 0:00:06]} 19. Rxc7 {[%clk 0:00:49]}  Rf8 {[%clk 0:00:05]} 20. Bxf7 {[%clk 0:00:36]}  Bxe4 {[%clk 0:00:04]} 21. Bd5+ {[%clk 0:00:31]}  Be7 {[%clk 0:00:03]} 22. Rxe7+ {[%clk 0:00:29]}  Kf6 {[%clk 0:00:03]} 23. Re6+ {[%clk 0:00:29]}  Kf5 {[%clk 0:00:02]} 24. Bxe4+ {[%clk 0:00:27]}  Kf4 {[%clk 0:00:02]} 25. g3+ {[%clk 0:00:16]}  Kg4 {[%clk 0:00:02]} 26. Bg2 {[%clk 0:00:16]} 1-0


[Site "https://www.chess.com"]